[Event "44th Chess Olympiad Open 2022"]
[Site "Chennai"]
[Date "2022.07.31"]
[Round "3.53"]
[White "Teixeira, Gil"]
[Black "Arvelo Leo, Gian Carlo"]
[Result "0-1"]
[WhiteElo "1741"]
[BlackElo "2176"]
[Annotator "RC"]
[PlyCount "64"]
[EventDate "2022.??.??"]
[TimeControl "60"]

1. e4 {[%emt 0:07:27]} c5 {[%emt 0:00:07]} 2. c3 {[%emt 0:00:20]} Nf6 {[%emt 0:
00:00]} 3. e5 {[%emt 0:00:31]} Nd5 {[%emt 0:00:09]} 4. d4 {[%emt 0:01:00]} cxd4
{[%emt 0:00:17]} 5. cxd4 {[%emt 0:00:04]} e6 {[%emt 0:01:03]} 6. Bc4 {[%emt 0:
00:00]} d6 {[%emt 0:00:32]} 7. Bxd5 {[%emt 0:01:24]} exd5 {[%emt 0:05:13]} 8.
Nf3 {[%emt 0:00:09]} Nc6 {[%emt 0:04:03]} 9. exd6 {[%emt 0:00:38]} Bxd6 {
[%emt 0:02:27]} 10. O-O {[%emt 0:00:10]} O-O {[%emt 0:00:35]} 11. h3 {[%emt 0:
00:00]} Be6 {[%emt 0:12:10]} 12. Be3 {[%emt 0:04:19]} Re8 {[%emt 0:08:38]} 13.
Nc3 {[%emt 0:00:43]} f6 {[%emt 0:01:02]} 14. Re1 {[%emt 0:07:18]} Rc8 {[%emt 0:
00:00]} 15. a3 {[%emt 0:00:19]} Na5 {[%emt 0:00:54]} 16. Qd3 {[%emt 0:07:42]}
Nc4 {[%emt 0:02:57]} 17. Bc1 {[%emt 0:01:42]} Qd7 {[%emt 0:15:39]} 18. b3 {
[%emt 0:00:42]} Na5 {[%emt 0:06:07]} 19. Ne2 {[%emt 0:00:42]} Bf5 {[%emt 0:00:
00]} 20. Qd1 {[%emt 0:00:27]} Bc2 {[%emt 0:00:30]} 21. Ne5 {[%emt 0:06:34]}
fxe5 {[%emt 0:01:13]} 22. Qd2 {[%emt 0:01:15]} Nxb3 {[%emt 0:00:28]} 23. Qe3 {
[%emt 0:00:40]} exd4 {[%emt 0:01:48]} 24. Qf3 {[%emt 0:00:41]} Nxa1 {[%emt 0:
00:00]} 25. Qxd5+ {[%emt 0:04:27]} Qe6 {[%emt 0:01:51]} 26. Qxd4 {[%emt 0:00:
00]} Nb3 {[%emt 0:00:12]} 27. Qb2 {[%emt 0:01:59]} Nxc1 {[%emt 0:00:22]} 28.
Qxc1 {[%emt 0:01:12]} Bd3 {[%emt 0:00:26]} 29. Qd2 {[%emt 0:00:25]} Bxe2 {
[%emt 0:00:11]} 30. Rxe2 {[%emt 0:01:15]} Qxe2 {[%emt 0:00:33]} 31. Qxd6 {
[%emt 0:00:17]} Rc1+ {[%emt 0:00:14]} 32. Kh2 {[%emt 0:00:47]} Qe5+ {[%emt 0:
00:00]} 0-1

[Event "44th Chess Olympiad Open 2022"]
[Site "Chennai"]
[Date "2022.07.31"]
[Round "3.54"]
[White "Msellek, Ilyass"]
[Black "Husbands, Orlando"]
[Result "1-0"]
[WhiteElo "2398"]
[BlackElo "2353"]
[Annotator "RC"]
[PlyCount "117"]
[EventDate "2022.??.??"]
[TimeControl "60"]

1. e4 {[%emt 0:00:05]} c5 {[%emt 0:00:03]} 2. Nf3 {[%emt 0:00:08]} d6 {[%emt 0:
00:00]} 3. Bb5+ {[%emt 0:00:14]} Nd7 {[%emt 0:00:01]} 4. a4 {[%emt 0:01:07]}
Ngf6 {[%emt 0:02:56]} 5. Nc3 {[%emt 0:00:11]} e6 {[%emt 0:00:19]} 6. O-O {
[%emt 0:01:38]} Be7 {[%emt 0:00:06]} 7. d4 {[%emt 0:05:44]} cxd4 {[%emt 0:00:
00]} 8. Qxd4 {[%emt 0:00:27]} O-O {[%emt 0:00:11]} 9. Rd1 {[%emt 0:01:36]} a6 {
[%emt 0:01:37]} 10. Bf1 {[%emt 0:06:51]} Qc7 {[%emt 0:03:24]} 11. a5 {[%emt 0:
00:00]} Ne5 {[%emt 0:00:13]} 12. Nxe5 {[%emt 0:10:18]} dxe5 {[%emt 0:00:44]}
13. Qc4 {[%emt 0:07:15]} Qxc4 {[%emt 0:01:38]} 14. Bxc4 {[%emt 0:00:06]} Bd7 {
[%emt 0:00:02]} 15. Be3 {[%emt 0:06:37]} Rac8 {[%emt 0:04:50]} 16. Bb3 {
[%emt 0:00:13]} Bc5 {[%emt 0:10:32]} 17. Bxc5 {[%emt 0:00:42]} Rxc5 {[%emt 0:
00:00]} 18. f3 {[%emt 0:05:18]} Rfc8 {[%emt 0:01:33]} 19. Rd2 {[%emt 0:14:44]}
Kf8 {[%emt 0:00:14]} 20. Nd1 {[%emt 0:00:33]} Ke7 {[%emt 0:12:35]} 21. Ne3 {
[%emt 0:00:07]} Be8 {[%emt 0:06:04]} 22. c4 {[%emt 0:02:15]} Nd7 {[%emt 0:00:
00]} 23. Ba4 {[%emt 0:02:29]} Nb8 {[%emt 0:00:02]} 24. Bxe8 {[%emt 0:01:52]}
Rxe8 {[%emt 0:02:58]} 25. b4 {[%emt 0:03:24]} Rcc8 {[%emt 0:01:01]} 26. Rad1 {
[%emt 0:05:45]} Red8 {[%emt 0:00:28]} 27. Rxd8 {[%emt 0:00:41]} Rxd8 {[%emt 0:
00:00]} 28. Rxd8 {[%emt 0:01:00]} Kxd8 {[%emt 0:00:01]} 29. Kf2 {[%emt 0:00:55]
} Nc6 {[%emt 0:00:01]} 30. Nc2 {[%emt 0:00:02]} Kc7 {[%emt 0:02:42]} 31. Ke3 {
[%emt 0:00:01]} f5 {[%emt 0:00:02]} 32. Kd3 {[%emt 0:00:12]} Nb8 {[%emt 0:00:
00]} 33. Kc3 {[%emt 0:00:38]} Nc6 {[%emt 0:05:25]} 34. Ne1 {[%emt 0:00:33]} Nd4
{[%emt 0:02:24]} 35. Nd3 {[%emt 0:00:19]} Nc6 {[%emt 0:10:10]} 36. Nc5 {
[%emt 0:00:11]} Nd4 {[%emt 0:00:40]} 37. Nd3 {[%emt 0:00:43]} Nc6 {[%emt 0:00:
00]} 38. Kb3 {[%emt 0:02:00]} g5 {[%emt 0:04:15]} 39. Nc5 {[%emt 0:04:43]} Nd4+
{[%emt 0:00:57]} 40. Kc3 {[%emt 0:00:10]} h5 {[%emt 0:00:56]} 41. Nb3 {[%emt 0:
00:00]} Nxb3 {[%emt 0:17:19]} 42. Kxb3 {[%emt 0:00:09]} Kd6 {[%emt 0:00:05]}
43. Kc3 {[%emt 0:02:26]} f4 {[%emt 0:01:27]} 44. h3 {[%emt 0:00:44]} Kc6 {
[%emt 0:00:24]} 45. Kd3 {[%emt 0:06:12]} Kc7 {[%emt 0:00:18]} 46. Ke2 {[%emt 0:
00:00]} Kc6 {[%emt 0:01:11]} 47. Kf2 {[%emt 0:02:54]} Kc7 {[%emt 0:02:20]} 48.
g4 {[%emt 0:01:03]} hxg4 {[%emt 0:19:12]} 49. fxg4 {[%emt 0:01:17]} Kc6 {
[%emt 0:04:28]} 50. Kf3 {[%emt 0:00:15]} Kd6 {[%emt 0:00:09]} 51. c5+ {[%emt 0:
00:00]} Kd7 {[%emt 0:01:55]} 52. h4 {[%emt 0:00:52]} gxh4 {[%emt 0:00:05]} 53.
g5 {[%emt 0:00:05]} h3 {[%emt 0:01:29]} 54. g6 {[%emt 0:00:09]} Ke7 {[%emt 0:
00:00]} 55. g7 {[%emt 0:01:44]} Kf7 {[%emt 0:00:07]} 56. b5 {[%emt 0:00:05]}
axb5 {[%emt 0:00:58]} 57. c6 {[%emt 0:00:15]} bxc6 {[%emt 0:00:48]} 58. a6 {
[%emt 0:00:04]} Kxg7 {[%emt 0:00:42]} 59. a7 {[%emt 0:00:06]} 1-0

[Event "44th Chess Olympiad Open 2022"]
[Site "Chennai"]
[Date "2022.07.31"]
[Round "3.54"]
[White "Choukri, Adel"]
[Black "Parsons, Justin"]
[Result "1-0"]
[WhiteElo "2306"]
[BlackElo "1749"]
[Annotator "RC"]
[PlyCount "93"]
[EventDate "2022.??.??"]
[TimeControl "60"]

1. Nf3 {[%emt 0:00:10]} d5 {[%emt 0:00:23]} 2. c4 {[%emt 0:00:07]} e6 {[%emt 0:
00:00]} 3. g3 {[%emt 0:00:12]} Nf6 {[%emt 0:01:07]} 4. Bg2 {[%emt 0:00:14]} Be7
{[%emt 0:01:23]} 5. b3 {[%emt 0:00:08]} O-O {[%emt 0:01:39]} 6. O-O {[%emt 0:
00:00]} b6 {[%emt 0:06:57]} 7. e3 {[%emt 0:00:16]} Bb7 {[%emt 0:00:26]} 8. Qe2
{[%emt 0:00:12]} c5 {[%emt 0:04:01]} 9. Bb2 {[%emt 0:00:45]} Nbd7 {[%emt 0:00:
00]} 10. d4 {[%emt 0:01:32]} Qc7 {[%emt 0:01:59]} 11. cxd5 {[%emt 0:02:17]}
Nxd5 {[%emt 0:03:03]} 12. Rc1 {[%emt 0:04:32]} Qb8 {[%emt 0:07:26]} 13. e4 {
[%emt 0:00:54]} Nb4 {[%emt 0:00:59]} 14. Nc3 {[%emt 0:00:58]} cxd4 {[%emt 0:00:
00]} 15. Nxd4 {[%emt 0:00:20]} Nc5 {[%emt 0:05:04]} 16. Rd1 {[%emt 0:03:00]}
Rd8 {[%emt 0:02:56]} 17. a3 {[%emt 0:19:51]} Nc6 {[%emt 0:04:48]} 18. Nd5 {
[%emt 0:03:20]} Bf8 {[%emt 0:19:59]} 19. Nxc6 {[%emt 0:12:20]} Bxc6 {[%emt 0:
00:00]} 20. Nf6+ {[%emt 0:23:08]} gxf6 {[%emt 0:05:37]} 21. Bxf6 {[%emt 0:00:
00]} Rxd1+ {[%emt 0:00:13]} 22. Rxd1 {[%emt 0:00:05]} Bg7 {[%emt 0:00:22]} 23.
Qg4 {[%emt 0:03:42]} Qf8 {[%emt 0:00:09]} 24. b4 {[%emt 0:00:47]} Nd7 {[%emt 0:
00:00]} 25. e5 {[%emt 0:00:24]} Bxg2 {[%emt 0:00:41]} 26. Kxg2 {[%emt 0:00:56]}
Nxe5 {[%emt 0:03:08]} 27. Bxe5 {[%emt 0:00:10]} Kh8 {[%emt 0:00:08]} 28. Bxg7+
{[%emt 0:02:05]} Qxg7 {[%emt 0:00:07]} 29. Qf3 {[%emt 0:00:04]} Rf8 {[%emt 0:
00:00]} 30. b5 {[%emt 0:01:04]} Qe5 {[%emt 0:01:02]} 31. a4 {[%emt 0:00:28]}
Kg7 {[%emt 0:05:56]} 32. Rd7 {[%emt 0:00:13]} Qb8 {[%emt 0:00:44]} 33. Rb7 {
[%emt 0:01:40]} Qd8 {[%emt 0:01:45]} 34. Rxa7 {[%emt 0:00:29]} Qd4 {[%emt 0:00:
00]} 35. Qc6 {[%emt 0:01:57]} Qd5+ {[%emt 0:01:54]} 36. Qxd5 {[%emt 0:00:25]}
exd5 {[%emt 0:00:06]} 37. Kf3 {[%emt 0:00:31]} Kf6 {[%emt 0:00:13]} 38. Rb7 {
[%emt 0:00:06]} Rc8 {[%emt 0:01:53]} 39. Ke3 {[%emt 0:01:32]} Ke5 {[%emt 0:00:
00]} 40. f4+ {[%emt 0:00:10]} Ke6 {[%emt 0:00:14]} 41. Rxb6+ {[%emt 0:30:09]}
Ke7 {[%emt 0:30:33]} 42. a5 {[%emt 0:00:20]} Rc4 {[%emt 0:00:37]} 43. a6 {
[%emt 0:00:12]} Ra4 {[%emt 0:00:00]} 44. Rb7+ {[%emt 0:00:00]} Ke6 {[%emt 0:00:
00]} 45. a7 {[%emt 0:00:00]} Kd6 {[%emt 0:00:00]} 46. Rb6+ {[%emt 0:00:00]} Kc5
{[%emt 0:00:00]} 47. Ra6 {[%emt 0:00:00]} 1-0

[Event "44th Chess Olympiad Open 2022"]
[Site "Chennai"]
[Date "2022.07.31"]
[Round "3.54"]
[White "Blackman, Justin"]
[Black "Tissir, Mohamed"]
[Result "1/2-1/2"]
[WhiteElo "2195"]
[BlackElo "2366"]
[Annotator "RC"]
[PlyCount "143"]
[EventDate "2022.??.??"]
[TimeControl "60"]

1. d4 {[%emt 0:00:04]} Nf6 {[%emt 0:04:07]} 2. Nf3 {[%emt 0:00:10]} g6 {
[%emt 0:00:38]} 3. Bf4 {[%emt 0:00:08]} Bg7 {[%emt 0:00:19]} 4. e3 {[%emt 0:00:
00]} O-O {[%emt 0:00:47]} 5. c4 {[%emt 0:00:16]} d6 {[%emt 0:01:28]} 6. Nc3 {
[%emt 0:00:11]} c5 {[%emt 0:09:09]} 7. Be2 {[%emt 0:00:11]} Qb6 {[%emt 0:04:11]
} 8. Qd2 {[%emt 0:11:46]} Bf5 {[%emt 0:01:25]} 9. O-O {[%emt 0:11:13]} Nc6 {
[%emt 0:04:41]} 10. dxc5 {[%emt 0:07:09]} dxc5 {[%emt 0:03:49]} 11. Na4 {
[%emt 0:02:09]} Qb4 {[%emt 0:00:37]} 12. Qxb4 {[%emt 0:00:14]} cxb4 {[%emt 0:
00:00]} 13. a3 {[%emt 0:26:10]} bxa3 {[%emt 0:05:57]} 14. Rxa3 {[%emt 0:00:22]}
Ne4 {[%emt 0:00:21]} 15. h3 {[%emt 0:04:32]} Rad8 {[%emt 0:06:14]} 16. Rc1 {
[%emt 0:03:04]} e5 {[%emt 0:04:21]} 17. Bh2 {[%emt 0:00:10]} Rfe8 {[%emt 0:00:
00]} 18. Raa1 {[%emt 0:02:34]} Nd2 {[%emt 0:06:51]} 19. Nxd2 {[%emt 0:03:24]}
Rxd2 {[%emt 0:00:06]} 20. Kf1 {[%emt 0:00:19]} Red8 {[%emt 0:02:27]} 21. Rd1 {
[%emt 0:03:59]} Bc2 {[%emt 0:13:57]} 22. Rxd2 {[%emt 0:02:54]} Rxd2 {[%emt 0:
00:00]} 23. Ke1 {[%emt 0:02:59]} Rd8 {[%emt 0:00:14]} 24. Nc3 {[%emt 0:01:35]}
e4 {[%emt 0:03:20]} 25. c5 {[%emt 0:06:31]} Bf8 {[%emt 0:12:43]} 26. Bd1 {
[%emt 0:03:51]} Bd3 {[%emt 0:13:06]} 27. Rc1 {[%emt 0:00:34]} Bxc5 {[%emt 0:00:
00]} 28. Nxe4 {[%emt 0:00:24]} Bb4+ {[%emt 0:00:31]} 29. Nc3 {[%emt 0:00:10]}
Ba6 {[%emt 0:00:27]} 30. Be2 {[%emt 0:01:23]} Bxe2 {[%emt 0:00:08]} 31. Kxe2 {
[%emt 0:00:02]} f5 {[%emt 0:00:06]} 32. g4 {[%emt 0:02:41]} Kf7 {[%emt 0:00:17]
} 33. Bf4 {[%emt 0:01:27]} Ke6 {[%emt 0:00:20]} 34. gxf5+ {[%emt 0:01:08]} gxf5
{[%emt 0:00:14]} 35. Rg1 {[%emt 0:00:13]} Bxc3 {[%emt 0:00:12]} 36. bxc3 {
[%emt 0:00:06]} Rd7 {[%emt 0:00:07]} 37. Rg8 {[%emt 0:00:12]} a5 {[%emt 0:00:
00]} 38. c4 {[%emt 0:01:11]} Kf7 {[%emt 0:01:28]} 39. Rh8 {[%emt 0:01:57]} Ke6
{[%emt 0:00:23]} 40. Re8+ {[%emt 0:00:21]} Kf7 {[%emt 0:00:39]} 41. Rh8 {
[%emt 0:30:40]} Kg7 {[%emt 0:03:41]} 42. Rc8 {[%emt 0:00:00]} Kf6 {[%emt 0:00:
00]} 43. Rf8+ {[%emt 0:00:00]} Ke6 {[%emt 0:02:09]} 44. Re8+ {[%emt 0:00:00]}
Re7 {[%emt 0:02:07]} 45. Rf8 {[%emt 0:00:00]} Rg7 {[%emt 0:09:33]} 46. Bg3 {
[%emt 0:00:00]} Rd7 {[%emt 0:01:03]} 47. Bh4 {[%emt 0:00:00]} Rf7 {[%emt 0:00:
00]} 48. Re8+ {[%emt 0:00:00]} Kd6 {[%emt 0:02:51]} 49. Kd3 {[%emt 0:00:00]}
Kc5 {[%emt 0:01:20]} 50. Kc3 {[%emt 0:00:00]} a4 {[%emt 0:01:05]} 51. f4 {
[%emt 0:00:00]} b5 {[%emt 0:00:42]} 52. cxb5 {[%emt 0:00:00]} Kxb5 {[%emt 0:00:
00]} 53. e4 {[%emt 0:00:00]} fxe4 {[%emt 0:06:30]} 54. Rxe4 {[%emt 0:00:00]} a3
{[%emt 0:00:45]} 55. Kb3 {[%emt 0:00:00]} Ra7 {[%emt 0:00:31]} 56. Bf6 {
[%emt 0:07:05]} Na5+ {[%emt 0:00:01]} 57. Ka2 {[%emt 0:01:27]} Nc4 {[%emt 0:00:
00]} 58. Re7 {[%emt 0:00:36]} Ra6 {[%emt 0:00:43]} 59. Rb7+ {[%emt 0:00:15]}
Kc6 {[%emt 0:03:03]} 60. Rxh7 {[%emt 0:00:19]} Kd5 {[%emt 0:00:30]} 61. Bc3 {
[%emt 0:00:56]} Rg6 {[%emt 0:01:09]} 62. Rd7+ {[%emt 0:01:02]} Kc5 {[%emt 0:00:
00]} 63. f5 {[%emt 0:00:31]} Rg3 {[%emt 0:00:42]} 64. Kb3 {[%emt 0:00:52]} Na5+
{[%emt 0:00:27]} 65. Kc2 {[%emt 0:00:31]} a2 {[%emt 0:00:34]} 66. Rd1 {[%emt 0:
00:00]} Rg2+ {[%emt 0:00:15]} 67. Kd3 {[%emt 0:00:15]} Rg3+ {[%emt 0:00:21]}
68. Kc2 {[%emt 0:00:12]} Rg2+ {[%emt 0:00:41]} 69. Kd3 {[%emt 0:00:36]} Rg3+ {
[%emt 0:00:45]} 70. Kc2 {[%emt 0:00:26]} Rg2+ {[%emt 0:00:29]} 71. Kd3 {
[%emt 0:03:24]} Nb3 {[%emt 0:00:02]} 72. Ke4 {[%emt 0:00:16]} 1/2-1/2

[Event "44th Chess Olympiad Open 2022"]
[Site "Chennai"]
[Date "2022.07.31"]
[Round "3.54"]
[White "Roachford, Adam"]
[Black "Hadj Kholti, Yasser"]
[Result "0-1"]
[WhiteElo "1443"]
[BlackElo "1871"]
[Annotator "NA"]
[PlyCount "114"]
[EventDate "2022.??.??"]
[TimeControl "60"]

1. e4 {[%emt 0:00:04]} c5 {[%emt 0:00:04]} 2. Nf3 {[%emt 0:00:07]} Nc6 {
[%emt 0:00:04]} 3. Nc3 {[%emt 0:01:22]} Nf6 {[%emt 0:03:14]} 4. d4 {[%emt 0:00:
00]} cxd4 {[%emt 0:00:07]} 5. Nxd4 {[%emt 0:00:08]} e5 {[%emt 0:01:16]} 6. Nf3
{[%emt 0:14:23]} d6 {[%emt 0:03:21]} 7. Bc4 {[%emt 0:00:58]} Be6 {[%emt 0:00:
00]} 8. Bb3 {[%emt 0:05:02]} Be7 {[%emt 0:02:51]} 9. O-O {[%emt 0:03:51]} O-O {
[%emt 0:01:43]} 10. Re1 {[%emt 0:07:57]} h6 {[%emt 0:02:49]} 11. h3 {[%emt 0:
00:00]} Qd7 {[%emt 0:04:26]} 12. Be3 {[%emt 0:09:50]} Rfd8 {[%emt 0:21:09]} 13.
Qe2 {[%emt 0:06:15]} Na5 {[%emt 0:26:18]} 14. Rad1 {[%emt 0:06:21]} Nxb3 {
[%emt 0:00:32]} 15. axb3 {[%emt 0:00:26]} Qc6 {[%emt 0:05:42]} 16. Bc1 {
[%emt 0:03:21]} a6 {[%emt 0:00:59]} 17. Nh4 {[%emt 0:01:20]} d5 {[%emt 0:08:30]
} 18. Nxd5 {[%emt 0:14:59]} Nxd5 {[%emt 0:00:09]} 19. exd5 {[%emt 0:00:21]}
Rxd5 {[%emt 0:01:46]} 20. Rxd5 {[%emt 0:00:43]} Qxd5 {[%emt 0:00:06]} 21. Rd1 {
[%emt 0:01:27]} Qc6 {[%emt 0:00:23]} 22. Nf3 {[%emt 0:01:20]} f6 {[%emt 0:00:
00]} 23. Be3 {[%emt 0:10:41]} Rc8 {[%emt 0:00:57]} 24. Rd2 {[%emt 0:01:20]} a5
{[%emt 0:02:40]} 25. Ne1 {[%emt 0:00:43]} Bb4 {[%emt 0:01:33]} 26. c3 {[%emt 0:
00:00]} Be7 {[%emt 0:00:20]} 27. Qd1 {[%emt 0:01:03]} Qe8 {[%emt 0:03:21]} 28.
f4 {[%emt 0:00:32]} e4 {[%emt 0:01:54]} 29. Bd4 {[%emt 0:00:41]} Qb5 {[%emt 0:
00:00]} 30. c4 {[%emt 0:00:21]} Qc6 {[%emt 0:00:05]} 31. Nc2 {[%emt 0:00:33]}
b5 {[%emt 0:01:17]} 32. Ne3 {[%emt 0:00:26]} bxc4 {[%emt 0:03:24]} 33. bxc4 {
[%emt 0:00:06]} a4 {[%emt 0:01:22]} 34. Rc2 {[%emt 0:00:47]} Rd8 {[%emt 0:00:
00]} 35. Rd2 {[%emt 0:00:11]} Bb4 {[%emt 0:01:35]} 36. Bc3 {[%emt 0:01:53]}
Rxd2 {[%emt 0:00:25]} 37. Qxd2 {[%emt 0:00:06]} Bc5 {[%emt 0:00:10]} 38. Bd4 {
[%emt 0:00:20]} Bd6 {[%emt 0:01:13]} 39. c5 {[%emt 0:00:17]} Bxf4 {[%emt 0:00:
00]} 40. Qb4 {[%emt 0:00:25]} Qd7 {[%emt 0:00:39]} 41. Kf2 {[%emt 0:30:53]} Bc7
{[%emt 0:30:36]} 42. Bc3 {[%emt 0:00:30]} f5 {[%emt 0:00:19]} 43. g3 {[%emt 0:
00:00]} h5 {[%emt 0:00:48]} 44. h4 {[%emt 0:00:23]} Qf7 {[%emt 0:00:28]} 45.
Qxa4 {[%emt 0:00:25]} Qg6 {[%emt 0:00:30]} 46. Nf1 {[%emt 0:00:27]} f4 {
[%emt 0:00:13]} 47. gxf4 {[%emt 0:00:27]} Bxf4 {[%emt 0:00:02]} 48. Qd4 {
[%emt 0:00:37]} Bh6 {[%emt 0:00:55]} 49. Qe5 {[%emt 0:00:47]} Qg4 {[%emt 0:00:
00]} 50. Qg3 {[%emt 0:00:28]} e3+ {[%emt 0:00:48]} 51. Ke1 {[%emt 0:00:32]} Qe4
{[%emt 0:00:22]} 52. Qb8+ {[%emt 0:00:33]} Kh7 {[%emt 0:00:05]} 53. Qb4 {
[%emt 0:00:14]} Qb1+ {[%emt 0:00:09]} 54. Ke2 {[%emt 0:00:10]} Bg4+ {[%emt 0:
00:00]} 55. Qxg4 {[%emt 0:00:16]} hxg4 {[%emt 0:00:03]} 56. Nxe3 {[%emt 0:00:
00]} Qe4 {[%emt 0:00:07]} 57. Bd2 {[%emt 0:00:06]} g3 {[%emt 0:00:02]} 0-1

[Event "44th Chess Olympiad Open 2022"]
[Site "Chennai"]
[Date "2022.07.31"]
[Round "3.55"]
[White "Chinchilla Miranda, Eugenio"]
[Black "Coulibaly, Abdoulaye"]
[Result "1-0"]
[WhiteElo "2206"]
[BlackElo "1936"]
[Annotator "ChessBase"]
[PlyCount "117"]
[EventDate "2022.??.??"]
[TimeControl "60"]

1. d4 {[%emt 0:00:05]} d5 {[%emt 0:00:15]} 2. c4 {[%emt 0:00:06]} c6 {[%emt 0:
00:00]} 3. Nf3 {[%emt 0:00:06]} Nf6 {[%emt 0:00:12]} 4. Qc2 {[%emt 0:00:26]}
Bg4 {[%emt 0:03:18]} 5. Ne5 {[%emt 0:00:14]} Bh5 {[%emt 0:01:25]} 6. cxd5 {
[%emt 0:00:40]} Qxd5 {[%emt 0:01:35]} 7. e3 {[%emt 0:01:37]} e6 {[%emt 0:00:29]
} 8. Nc3 {[%emt 0:02:36]} Bb4 {[%emt 0:00:20]} 9. Bd2 {[%emt 0:00:19]} Bxc3 {
[%emt 0:00:13]} 10. bxc3 {[%emt 0:00:22]} Nbd7 {[%emt 0:05:39]} 11. Nxd7 {
[%emt 0:16:11]} Qxd7 {[%emt 0:01:08]} 12. f3 {[%emt 0:03:42]} O-O {[%emt 0:00:
00]} 13. Be2 {[%emt 0:00:43]} Nd5 {[%emt 0:02:38]} 14. e4 {[%emt 0:01:50]} Bg6
{[%emt 0:00:41]} 15. Qb3 {[%emt 0:00:31]} Nb6 {[%emt 0:00:49]} 16. a4 {[%emt 0:
00:00]} f5 {[%emt 0:02:04]} 17. a5 {[%emt 0:05:37]} Nc8 {[%emt 0:00:22]} 18. e5
{[%emt 0:02:57]} Ne7 {[%emt 0:02:10]} 19. f4 {[%emt 0:02:45]} Rab8 {[%emt 0:00:
00]} 20. O-O {[%emt 0:12:33]} Kh8 {[%emt 0:00:33]} 21. Bc1 {[%emt 0:00:53]} Rg8
{[%emt 0:05:38]} 22. Ba3 {[%emt 0:03:49]} b5 {[%emt 0:08:47]} 23. axb6 {
[%emt 0:01:20]} Rxb6 {[%emt 0:00:37]} 24. Qc4 {[%emt 0:01:23]} Nd5 {[%emt 0:00:
00]} 25. Bc5 {[%emt 0:09:33]} Rb7 {[%emt 0:03:16]} 26. Qd3 {[%emt 0:01:20]}
Rgb8 {[%emt 0:01:22]} 27. Ra3 {[%emt 0:01:34]} Qf7 {[%emt 0:02:52]} 28. c4 {
[%emt 0:03:15]} Nb6 {[%emt 0:02:43]} 29. Bd6 {[%emt 0:02:40]} Ra8 {[%emt 0:00:
00]} 30. Bf3 {[%emt 0:00:55]} Qd7 {[%emt 0:00:45]} 31. Ra6 {[%emt 0:01:04]} Be8
{[%emt 0:01:07]} 32. Rb1 {[%emt 0:01:56]} Qc8 {[%emt 0:01:41]} 33. Qb3 {
[%emt 0:03:16]} Rab8 {[%emt 0:00:54]} 34. Bxb8 {[%emt 0:00:54]} Rxb8 {[%emt 0:
00:00]} 35. Rxa7 {[%emt 0:01:33]} Nd7 {[%emt 0:00:28]} 36. Rb7 {[%emt 0:01:04]}
Ra8 {[%emt 0:01:31]} 37. h3 {[%emt 0:01:11]} h6 {[%emt 0:00:48]} 38. Kh2 {
[%emt 0:00:55]} Kh7 {[%emt 0:00:17]} 39. Qb4 {[%emt 0:01:26]} c5 {[%emt 0:00:
00]} 40. dxc5 {[%emt 0:00:34]} Nxc5 {[%emt 0:00:39]} 41. Re7 {[%emt 0:34:40]}
Ra4 {[%emt 0:31:43]} 42. Rxe8 {[%emt 0:00:38]} Qxe8 {[%emt 0:00:25]} 43. Qxc5 {
[%emt 0:00:13]} Ra2 {[%emt 0:02:00]} 44. Rb7 {[%emt 0:01:02]} h5 {[%emt 0:00:
00]} 45. Qe7 {[%emt 0:00:24]} Qg6 {[%emt 0:00:34]} 46. Qh4 {[%emt 0:00:40]} Kh6
{[%emt 0:01:09]} 47. Rb8 {[%emt 0:00:24]} Kh7 {[%emt 0:00:11]} 48. Qxh5+ {
[%emt 0:00:27]} Qxh5 {[%emt 0:00:31]} 49. Bxh5 {[%emt 0:00:02]} Rc2 {[%emt 0:
00:00]} 50. Rc8 {[%emt 0:00:11]} g6 {[%emt 0:00:09]} 51. Bf3 {[%emt 0:00:06]}
Kg7 {[%emt 0:01:31]} 52. c5 {[%emt 0:00:13]} Rc4 {[%emt 0:00:13]} 53. Kg3 {
[%emt 0:00:23]} g5 {[%emt 0:01:02]} 54. fxg5 {[%emt 0:00:21]} Kg6 {[%emt 0:00:
00]} 55. c6 {[%emt 0:01:44]} Kxg5 {[%emt 0:02:44]} 56. c7 {[%emt 0:00:15]} f4+
{[%emt 0:00:06]} 57. Kh2 {[%emt 0:00:08]} Kf5 {[%emt 0:00:29]} 58. Rf8+ {
[%emt 0:00:16]} Kxe5 {[%emt 0:00:02]} 59. c8=Q {[%emt 0:00:12]} 1-0

[Event "44th Chess Olympiad Open 2022"]
[Site "Chennai"]
[Date "2022.07.31"]
[Round "3.55"]
[White "Cabezas Solano, David Alejandro"]
[Black "Diarra, Sirike"]
[Result "1-0"]
[WhiteElo "2196"]
[BlackElo "1641"]
[Annotator "ChessBase"]
[PlyCount "77"]
[EventDate "2022.??.??"]
[TimeControl "60"]

1. d4 {[%emt 0:00:05]} d5 {[%emt 0:00:18]} 2. Nf3 {[%emt 0:00:06]} Nf6 {
[%emt 0:00:21]} 3. g3 {[%emt 0:00:06]} e6 {[%emt 0:00:22]} 4. Bg2 {[%emt 0:00:
00]} Be7 {[%emt 0:00:37]} 5. O-O {[%emt 0:00:10]} O-O {[%emt 0:00:09]} 6. c4 {
[%emt 0:00:07]} c6 {[%emt 0:01:31]} 7. Qc2 {[%emt 0:00:30]} Nbd7 {[%emt 0:00:
00]} 8. Nbd2 {[%emt 0:00:13]} b6 {[%emt 0:01:03]} 9. e4 {[%emt 0:00:24]} Bb7 {
[%emt 0:01:34]} 10. e5 {[%emt 0:01:45]} Ne8 {[%emt 0:00:10]} 11. cxd5 {[%emt 0:
00:00]} cxd5 {[%emt 0:00:32]} 12. Re1 {[%emt 0:01:03]} Nc7 {[%emt 0:02:34]} 13.
h4 {[%emt 0:01:32]} Rc8 {[%emt 0:01:42]} 14. Qb1 {[%emt 0:05:17]} h6 {[%emt 0:
00:00]} 15. Nf1 {[%emt 0:00:56]} Bb4 {[%emt 0:01:15]} 16. Rd1 {[%emt 0:01:20]}
f5 {[%emt 0:00:31]} 17. exf6 {[%emt 0:06:58]} Qxf6 {[%emt 0:00:27]} 18. Ne3 {
[%emt 0:02:33]} Nb5 {[%emt 0:03:07]} 19. Qd3 {[%emt 0:02:39]} Ba6 {[%emt 0:00:
00]} 20. Qb3 {[%emt 0:03:28]} Bd6 {[%emt 0:02:16]} 21. Qa4 {[%emt 0:02:46]} Nb8
{[%emt 0:01:10]} 22. Re1 {[%emt 0:05:06]} Nc7 {[%emt 0:01:47]} 23. Ng4 {
[%emt 0:02:49]} Qf5 {[%emt 0:04:39]} 24. Nge5 {[%emt 0:02:11]} Bxe5 {[%emt 0:
00:00]} 25. Rxe5 {[%emt 0:00:59]} Qg4 {[%emt 0:00:56]} 26. Bf4 {[%emt 0:06:11]}
Bd3 {[%emt 0:00:39]} 27. Rae1 {[%emt 0:06:58]} b5 {[%emt 0:05:12]} 28. Qa3 {
[%emt 0:01:02]} Bh7 {[%emt 0:01:37]} 29. h5 {[%emt 0:01:29]} Bf5 {[%emt 0:00:
00]} 30. Nh2 {[%emt 0:00:32]} Qxh5 {[%emt 0:00:30]} 31. g4 {[%emt 0:00:11]} Qh4
{[%emt 0:04:26]} 32. Bg3 {[%emt 0:00:13]} Qg5 {[%emt 0:00:05]} 33. gxf5 {
[%emt 0:00:15]} Nc6 {[%emt 0:00:15]} 34. Nf3 {[%emt 0:01:37]} Qg4 {[%emt 0:00:
00]} 35. R5e2 {[%emt 0:06:36]} Rxf5 {[%emt 0:02:41]} 36. Rc1 {[%emt 0:03:20]}
b4 {[%emt 0:00:52]} 37. Qe3 {[%emt 0:00:45]} e5 {[%emt 0:03:36]} 38. Rxc6 {
[%emt 0:00:20]} e4 {[%emt 0:00:10]} 39. Nh2 {[%emt 0:00:35]} 1-0